bitfinex/quotes_BTCUSD_20240821
["timestamp","ask_amount","ask_price","bid_price","bid_amount"]
[1724279829265,0.16400298,61584.0,61583.0,0.002]
[1724279829487,0.18700298,61584.0,61583.0,0.002]
[1724279830122,0.18700298,61584.0,61583.0,0.00266]
[1724279830324,0.18700298,61584.0,61580.0,0.1787]
[1724279830532,0.023,61583.0,61580.0,0.34109]
[1724279830743,0.16400298,61582.0,61580.0,0.34109]
[1724279830957,0.16400298,61582.0,61580.0,0.34175]
[1724279831373,0.16400298,61582.0,61580.0,0.34109]
[1724279831776,0.16400298,61582.0,61581.0,0.00266]
[1724279832306,0.16400298,61582.0,61580.0,0.34109]
[1724279832307,0.16400298,61582.0,61580.0,0.34375]
[1724279832996,0.17100298,61582.0,61580.0,0.34375]
[1724279833194,0.17100298,61582.0,61581.0,0.00066]
[1724279833368,0.17900298,61582.0,61581.0,0.00066]
[1724279833779,0.16400298,61582.0,61581.0,0.163047]
[1724279833980,0.17100298,61582.0,61581.0,0.263047]
[1724279834474,0.16400298,61582.0,61581.0,0.263047]
[1724279834672,0.17000298,61582.0,61581.0,0.263047]
[1724279835003,0.17700298,61582.0,61580.0,0.0787]
[1724279835160,0.17700298,61582.0,61580.0,0.24109]
[1724279836041,0.16400298,61582.0,61580.0,0.24109]
[1724279836247,0.16400298,61582.0,61580.0,0.24175]
[1724279836248,0.16900298,61582.0,61580.0,0.24175]
[1724279836442,0.17500298,61582.0,61580.0,0.24175]
[1724279836646,0.17000298,61582.0,61580.0,0.24175]
[1724279836864,0.16900298,61582.0,61580.0,0.24175]
[1724279837127,0.16900298,61582.0,61580.0,0.0787]
[1724279837326,0.16900298,61582.0,61577.0,0.00066]
[1724279837327,0.023,61581.0,61577.0,0.0758]
[1724279837547,0.19478215,61580.0,61574.0,0.0758]
[1724279837729,0.16415713,61580.0,61574.0,0.0758]
[1724279838041,0.023,61579.0,61575.0,0.00066]
[1724279838323,0.023,61579.0,61574.0,0.07846]
[1724279838324,0.16400298,61578.0,61574.0,0.07846]
[1724279838646,0.023,61577.0,61574.0,0.0758]
[1724279838780,0.16400298,61576.0,61574.0,0.0758]
[1724279838985,0.023,61575.0,61574.0,0.0758]
[1724279839351,0.18700298,61575.0,61571.0,0.0798]
[1724279839554,0.16400298,61574.0,61571.0,0.0798]
[1724279839762,0.023,61573.0,61571.0,0.0798]
[1724279839973,0.16400298,61572.0,61571.0,0.0798]
[1724279840408,0.18700298,61572.0,61571.0,0.0798]
[1724279840614,0.21756992,61572.0,61564.0,0.0764]
[1724279840839,0.023,61571.0,61568.0,0.00066]
[1724279841052,0.16400298,61570.0,61568.0,0.00266]
[1724279841262,0.023,61569.0,61568.0,0.00066]
[1724279841494,0.023,61569.0,61565.0,0.00266]
[1724279841495,0.18700298,61569.0,61565.0,0.00266]
[1724279841719,0.16400298,61568.0,61564.0,0.238831]
[1724279841942,0.023,61567.0,61564.0,0.238831]
[1724279842145,0.16400298,61566.0,61564.0,0.238831]
[1724279843396,0.16400298,61566.0,61564.0,0.0764]
[1724279843598,0.16700298,61566.0,61564.0,0.0764]
[1724279843804,0.16900298,61566.0,61564.0,0.0764]
[1724279844014,0.16600298,61566.0,61564.0,0.0764]
[1724279844478,0.17200298,61566.0,61564.0,0.0764]
[1724279844677,0.17200298,61566.0,61562.0,0.00085576]
[1724279844894,0.023,61565.0,61562.0,0.16595276]
[1724279845110,0.006,61566.0,61565.0,0.242789]
[1724279845316,0.011,61566.0,61565.0,0.95495285]
[1724279845733,0.005,61566.0,61565.0,0.95695285]
[1724279846141,0.006,61566.0,61565.0,1.28181185]
[1724279846570,0.005,61566.0,61565.0,1.28181185]
[1724279846782,0.02546904,61569.0,61568.0,1.139614]
[1724279846998,0.02546904,61569.0,61568.0,1.22015985]
[1724279847223,0.02546904,61569.0,61568.0,1.28175985]
[1724279847450,0.02546904,61569.0,61568.0,1.38175985]
[1724279850202,0.02646904,61569.0,61568.0,1.38175985]
[1724279850709,0.02546904,61569.0,61568.0,1.38175985]
[1724279861412,0.02546904,61569.0,61568.0,1.92039709]
[1724279861615,0.000826,61569.0,61568.0,1.92339709]
[1724279861819,0.000826,61569.0,61568.0,2.30192102]
[1724279862020,0.000826,61569.0,61568.0,2.31004564]
[1724279862239,0.000826,61569.0,61568.0,2.25336571]
[1724279862640,0.001826,61569.0,61568.0,2.25336571]
[1724279862840,0.002826,61569.0,61568.0,2.25336571]
[1724279863041,0.001826,61569.0,61568.0,1.87873145]
[1724279863696,0.002826,61569.0,61568.0,1.87873145]
[1724279864093,0.001826,61569.0,61568.0,1.87873145]
[1724279864458,0.001826,61569.0,61568.0,1.92852171]
[1724279865044,0.000826,61569.0,61568.0,1.92852171]
[1724279865265,0.000826,61569.0,61568.0,1.93152171]
[1724279865473,0.002826,61569.0,61568.0,1.93652171]
[1724279865811,0.000826,61569.0,61568.0,1.92852171]
[1724279865939,0.001826,61569.0,61568.0,1.93352171]
[1724279866321,0.001826,61569.0,61568.0,1.93152171]
[1724279866494,0.000826,61569.0,61568.0,1.92852171]
[1724279866695,0.001826,61569.0,61568.0,1.93352171]
[1724279866903,0.001826,61569.0,61568.0,1.93152171]
[1724279867125,0.002826,61569.0,61568.0,1.93652171]
[1724279868104,0.001826,61569.0,61568.0,1.71972847]
[1724279868361,0.002826,61569.0,61568.0,1.72072847]
[1724279869326,0.002826,61569.0,61568.0,1.71260385]
[1724279870854,0.01828854,61573.0,61572.0,1.139537]
[1724279871018,0.01828854,61573.0,61572.0,1.239537]
[1724279872053,0.01928854,61573.0,61572.0,1.240537]
[1724279872250,0.02028854,61573.0,61572.0,1.243537]
[1724279873075,0.01872353,61573.0,61572.0,1.239537]
[1724279873525,0.01972353,61573.0,61572.0,1.242537]
[1724279874377,0.01972353,61573.0,61572.0,1.32338285]
[1724279874600,0.01972353,61573.0,61572.0,1.38968285]
[1724279874841,0.02072353,61573.0,61572.0,1.71750485]
[1724279889346,0.02072353,61573.0,61572.0,1.65120485]
[1724279892449,0.02072353,61573.0,61572.0,1.57120485]
[1724279892865,0.02072353,61573.0,61572.0,1.24638285]
[1724279893288,0.02072353,61573.0,61572.0,0.920715]
[1724279893289,0.08122353,61573.0,61572.0,0.920715]
[1724279893509,0.08122353,61573.0,61572.0,0.92156085]
[1724279893723,0.08122353,61573.0,61572.0,0.59673885]
[1724279893937,0.14122353,61573.0,61572.0,0.490233]
[1724279894154,0.14022353,61573.0,61572.0,0.487233]
[1724279894379,0.30522651,61573.0,61572.0,0.002]
[1724279894603,0.30522651,61573.0,61572.0,0.00566]
[1724279894843,0.07972353,61573.0,61572.0,0.81556085]
[1724279895054,0.07972353,61573.0,61572.0,0.82056085]
[1724279895479,0.07972353,61573.0,61572.0,0.81756085]
[1724279896564,0.07972353,61573.0,61572.0,0.81556085]
[1724279896769,0.08172353,61573.0,61572.0,0.81556085]
[1724279897185,0.08572353,61573.0,61572.0,0.81556085]
[1724279897409,0.08372353,61573.0,61572.0,0.81646945]
[1724279897628,0.07972353,61573.0,61572.0,0.81646945]
[1724279897840,0.07972353,61573.0,61572.0,0.81746945]
[1724279898043,0.14022353,61573.0,61572.0,0.81746945]
[1724279898253,0.14022353,61573.0,61572.0,0.81480945]
[1724279898694,0.14022353,61573.0,61572.0,0.81746945]
[1724279900647,0.07972353,61573.0,61572.0,0.81746945]
[1724279900847,0.07972353,61573.0,61572.0,1.14229145]
[1724279901288,0.01872353,61573.0,61572.0,1.24229145]
[1724279901504,0.01872353,61573.0,61572.0,1.31819145]
[1724279902348,0.01872353,61573.0,61572.0,1.64301345]
[1724279902789,0.01872353,61573.0,61572.0,1.31819145]
[1724279904483,0.03571426,61573.0,61572.0,1.31819145]
[1724279904687,0.03571426,61573.0,61572.0,1.21819145]
[1724279906199,0.01872353,61573.0,61572.0,1.21819145]
[1724279907478,0.01872353,61573.0,61572.0,1.54301345]
[1724279907697,0.01872353,61573.0,61572.0,1.70901345]
[1724279907911,0.01872353,61573.0,61572.0,1.70801345]
[1724279908736,0.000826,61573.0,61572.0,1.70801345]
[1724279912475,0.000826,61573.0,61572.0,1.31819145]
[1724279913715,0.000826,61573.0,61572.0,1.24229145]
[1724279913969,0.066126,61573.0,61572.0,0.49264745]
[1724279914093,0.066126,61573.0,61572.0,0.49064745]
[1724279914298,0.066126,61573.0,61572.0,0.81546945]
[1724279914707,0.066126,61573.0,61572.0,0.81746945]
[1724279915060,0.066126,61573.0,61572.0,0.81646945]
[1724279915279,0.068126,61573.0,61572.0,0.81646945]
[1724279915470,0.070126,61573.0,61572.0,0.81646945]
[1724279915669,0.066126,61573.0,61572.0,0.81646945]
[1724279917050,0.067126,61573.0,61572.0,0.81646945]
[1724279917883,0.067126,61573.0,61572.0,0.4908016]
[1724279918094,0.067126,61573.0,61572.0,0.49164745]
[1724279918316,0.067126,61573.0,61572.0,0.4908016]
[1724279919123,0.067126,61573.0,61572.0,0.0009086]
[1724279919124,0.29162898,61573.0,61572.0,0.0009086]
[1724279919467,0.34379188,61573.0,61572.0,0.0009086]
[1724279919600,0.31462898,61573.0,61572.0,0.0009086]
[1724279919987,0.3626397,61573.0,61572.0,0.0009086]
[1724279920187,0.31512313,61573.0,61572.0,0.0009086]
[1724279920408,0.47753113,61573.0,61572.0,0.0009086]
[1724279920794,0.00015415,61564.0,61563.0,0.0009086]
[1724279920993,0.28885713,61564.0,61563.0,0.0009086]
[1724279921152,0.33884848,61564.0,61563.0,0.0009086]
[1724279921358,0.31319713,61564.0,61563.0,0.0009086]
[1724279921556,0.52425075,61564.0,61563.0,0.0009086]
[1724279921775,1.28808148,61564.0,61563.0,0.0009086]
[1724279922103,1.22535913,61564.0,61563.0,0.0009086]
[1724279922305,1.23935913,61564.0,61563.0,0.0009086]
[1724279922487,0.91449413,61564.0,61563.0,0.0009086]
[1724279922636,0.98736918,61564.0,61563.0,0.0009086]
[1724279922846,0.41185713,61564.0,61563.0,0.0009086]
[1724279923062,0.91449413,61564.0,61563.0,0.0009086]
[1724279923239,1.0954653,61564.0,61563.0,0.0009086]
[1724279923867,1.4343303,61564.0,61563.0,0.0009086]
[1724279924042,1.50720535,61564.0,61563.0,0.0009086]
[1724279924261,1.4199903,61564.0,61563.0,0.0009086]
[1724279924462,1.81798349,61564.0,61563.0,0.0009086]
[1724279924660,0.93836915,61563.0,61549.0,0.0009086]
[1724279924945,1.68701069,61563.0,61549.0,0.0009086]
[1724279925150,0.50745515,61553.0,61549.0,0.0009086]
[1724279925380,0.69445813,61553.0,61549.0,0.0009086]
[1724279925606,0.82888664,61553.0,61549.0,0.0009086]
[1724279925814,0.89178664,61553.0,61549.0,0.0009086]
[1724279926017,1.22688034,61553.0,61549.0,0.0009086]
[1724279927035,1.55180334,61553.0,61549.0,0.0009086]
[1724279927382,1.56580334,61553.0,61549.0,0.0009086]
[1724279927583,1.56446334,61553.0,61549.0,0.0009086]
[1724279927814,1.28146334,61553.0,61549.0,0.0009086]
[1724279928013,1.28280334,61553.0,61549.0,0.0009086]
[1724279928389,1.57980334,61553.0,61549.0,0.0009086]
[1724279928599,1.56580334,61553.0,61549.0,0.0009086]
[1724279929075,1.57980334,61553.0,61549.0,0.0009086]
[1724279929481,1.56580334,61553.0,61549.0,0.0009086]
[1724279929925,1.57980334,61553.0,61549.0,0.0009086]
[1724279930303,1.55563264,61553.0,61549.0,0.0009086]
[1724279930543,1.56963264,61553.0,61549.0,0.0009086]
[1724279931143,1.55563264,61553.0,61549.0,0.0009086]
[1724279931339,1.56580362,61553.0,61549.0,0.0009086]
[1724279931541,1.67980362,61553.0,61549.0,0.0009086]
[1724279931751,2.00472662,61553.0,61549.0,0.0009086]
[1724279931953,1.99072662,61553.0,61549.0,0.0009086]
[1724279932335,2.00472662,61553.0,61549.0,0.0009086]
[1724279933098,0.61493415,61546.0,61545.0,0.0009086]
[1724279933328,1.39706811,61546.0,61545.0,0.0009086]
[1724279933488,2.16998811,61546.0,61545.0,0.0009086]
[1724279933712,2.15981713,61546.0,61545.0,0.0009086]
[1724279933910,0.00149415,61541.0,61540.0,0.0009086]
[1724279934076,1.42524813,61541.0,61540.0,0.0009086]
[1724279934298,1.52524813,61541.0,61540.0,0.0009086]
[1724279934573,1.54824813,61541.0,61540.0,0.0009086]
[1724279935619,1.56224813,61541.0,61540.0,0.0009086]
[1724279936031,1.40124091,61541.0,61540.0,0.0009086]
[1724279936314,1.41524091,61541.0,61540.0,0.0009086]
[1724279938143,1.74022691,61541.0,61540.0,0.0009086]
[1724279938830,1.7572193,61541.0,61540.0,0.0009086]
[1724279940400,1.7432193,61541.0,61540.0,0.0009086]
[1724279940828,1.7572193,61541.0,61540.0,0.0009086]
[1724279941027,0.93667115,61540.0,61535.0,0.0009086]
[1724279941229,1.99564391,61540.0,61535.0,0.0009086]
[1724279942072,1.67065291,61540.0,61535.0,0.0009086]
[1724279942225,1.68465291,61540.0,61535.0,0.0009086]
[1724279942429,2.00964391,61540.0,61535.0,0.0009086]
[1724279942986,1.99564391,61540.0,61535.0,0.0009086]
[1724279943580,2.00215791,61540.0,61535.0,0.0009086]
[1724279944080,2.01615791,61540.0,61535.0,0.0009086]
[1724279944278,2.03015791,61540.0,61535.0,0.0009086]
[1724279944497,2.35514891,61540.0,61535.0,0.0009086]
[1724279944686,2.34114891,61540.0,61535.0,0.0009086]
[1724279944895,2.32714891,61540.0,61535.0,0.0009086]
[1724279945095,2.35514891,61540.0,61535.0,0.0009086]
[1724279946334,2.03015791,61540.0,61535.0,0.0009086]
[1724279946746,2.35514891,61540.0,61535.0,0.0009086]
[1724279946918,2.03015791,61540.0,61535.0,0.0009086]
[1724279951637,0.00149415,61532.0,61531.0,0.0009064]
[1724279951767,1.06154813,61532.0,61531.0,0.0009064]
[1724279951953,1.81161613,61532.0,61531.0,0.0009064]
[1724279952155,1.83461613,61532.0,61531.0,0.0009064]
[1724279952718,1.77411613,61532.0,61531.0,0.0009064]
[1724279952968,1.44908213,61532.0,61531.0,0.0009064]
[1724279953799,1.47664232,61532.0,61531.0,0.0009064]
[1724279953974,1.49363471,61532.0,61531.0,0.0009064]
[1724279954715,1.50188496,61532.0,61531.0,0.0009064]
[1724279956679,1.42807452,61532.0,61531.0,0.0009064]
[1724279956896,0.61548952,61532.0,61531.0,0.0009064]
[1724279957138,0.77800652,61532.0,61531.0,0.0009064]
[1724279957340,1.10304052,61532.0,61531.0,0.0009064]
[1724279957503,1.10264936,61532.0,61531.0,0.0009064]
[1724279959922,1.42768336,61532.0,61531.0,0.0009064]
[1724279960119,1.42768336,61532.0,61531.0,0.1418064]
[1724279960120,0.33209836,61532.0,61531.0,0.1418064]
[1724279960321,0.20894421,61532.0,61531.0,0.1418064]
[1724279960703,0.20909836,61532.0,61531.0,0.1418064]
[1724279960908,0.37161536,61532.0,61531.0,0.1418064]
[1724279961129,0.19509836,61532.0,61531.0,0.0777064]
[1724279961909,0.21865855,61532.0,61531.0,0.0777064]
[1724279962057,0.98920955,61532.0,61531.0,0.0777064]
[1724279962257,1.12007302,61532.0,61531.0,0.0777064]
[1724279962461,1.13407302,61532.0,61531.0,0.0777064]
[1724279963104,1.10663321,61532.0,61531.0,0.0777064]
[1724279963459,1.13463321,61532.0,61531.0,0.0009064]
[1724279964515,1.12063321,61532.0,61531.0,0.0009064]
[1724279964696,1.43166721,61532.0,61531.0,0.0009064]
[1724279965071,1.77070121,61532.0,61531.0,0.0009064]
[1724279965240,1.87070121,61532.0,61531.0,0.0009064]
[1724279965692,1.94850121,61532.0,61531.0,0.0009064]
[1724279965900,1.94850121,61532.0,61523.0,0.009086]
[1724279965901,0.44625234,61524.0,61523.0,0.009086]
[1724279966105,1.03533132,61524.0,61523.0,0.009086]
[1724279966528,1.38340732,61524.0,61523.0,0.009086]
[1724279966944,0.06451434,61523.0,61522.0,0.00195932]
[1724279967160,0.99985913,61523.0,61522.0,0.00195932]
[1724279967492,1.00041932,61523.0,61522.0,0.00195932]
[1724279968237,1.01441932,61523.0,61522.0,0.00195932]
[1724279968644,1.11441932,61523.0,61522.0,0.00195932]
[1724279968841,1.50330032,61523.0,61522.0,0.00195932]
[1724279969044,1.6812791,61523.0,61522.0,0.00195932]
[1724279969243,1.74673607,61523.0,61522.0,0.00195932]
[1724279969420,1.73273607,61523.0,61522.0,0.00195932]
[1724279970236,1.74673607,61523.0,61522.0,0.00195932]
[1724279970576,1.67027149,61523.0,61522.0,0.00195932]
[1724279970749,1.29539049,61523.0,61522.0,0.00195932]
[1724279970930,1.13141171,61523.0,61522.0,0.07855932]
[1724279971131,1.13141171,61523.0,61522.0,0.00195932]
[1724279971348,1.20410859,61523.0,61522.0,0.00195932]
[1724279971546,1.36808737,61523.0,61522.0,0.00195932]
[1724279971962,0.00015415,61512.0,61511.0,0.0638]
[1724279972167,0.16415713,61512.0,61511.0,0.0638]
[1724279972341,0.18715713,61512.0,61511.0,0.0638]
[1724279972549,0.18715713,61512.0,61511.0,0.1404]
[1724279973148,0.18700298,61512.0,61511.0,0.1404]
[1724279973551,0.21500298,61512.0,61511.0,0.1404]
[1724279973764,0.21515713,61512.0,61511.0,0.1404]
[1724279975270,1.02800413,61512.0,61511.0,0.0766]
[1724279975480,1.19198291,61512.0,61511.0,0.0766]
[1724279975722,0.26381751,61512.0,61511.0,0.0766]
[1724279975869,0.37772613,61512.0,61511.0,0.0766]
[1724279976075,0.36372613,61512.0,61511.0,0.0766]
[1724279976430,0.45042301,61512.0,61511.0,0.0766]
[1724279976574,0.59665569,61512.0,61511.0,0.0766]
[1724279977003,0.61065569,61512.0,61511.0,0.0766]
[1724279977198,0.62088798,61512.0,61511.0,0.0766]
[1724279977406,0.63488798,61512.0,61511.0,0.0766]
[1724279978100,0.62088798,61512.0,61511.0,0.0766]
[1724279978298,1.174797,61512.0,61511.0,0.0766]
[1724279978493,1.174797,61512.0,61508.0,0.0785]
[1724279978494,0.48787115,61511.0,61508.0,0.0785]
[1724279978716,1.28631295,61511.0,61508.0,0.0785]
[1724279978940,1.28631295,61511.0,61505.0,0.0798]
[1724279978941,1.4897031,61511.0,61505.0,0.0798]
[1724279979145,1.65429991,61511.0,61505.0,0.0798]
[1724279979296,1.6548601,61511.0,61505.0,0.0798]
[1724279979710,1.65429991,61511.0,61505.0,0.0798]
[1724279979923,1.66829991,61511.0,61505.0,0.0798]
[1724279980078,1.65429991,61511.0,61505.0,0.0798]
[1724279980462,1.6688601,61511.0,61505.0,0.0798]
[1724279981401,1.80455361,61511.0,61505.0,0.0798]
[1724279981893,1.6828601,61511.0,61505.0,0.0798]
[1724279983305,1.6688601,61511.0,61505.0,0.0798]
[1724279983520,1.6828601,61511.0,61505.0,0.0798]
[1724279984447,1.6688601,61511.0,61505.0,0.0798]
[1724279984680,1.74635249,61511.0,61501.0,0.086886]
[1724279985038,1.76035249,61511.0,61501.0,0.086886]
[1724279985238,1.88199841,61511.0,61501.0,0.086886]
[1724279985448,1.86799841,61511.0,61501.0,0.086886]
[1724279985810,1.76035249,61511.0,61501.0,0.086886]
[1724279987041,1.69985249,61511.0,61501.0,0.086886]
[1724279987850,1.53587371,61511.0,61509.0,0.0788]
[1724279988383,0.00015415,61502.0,61501.0,0.009086]
[1724279988576,0.21279832,61502.0,61501.0,0.009086]
[1724279989075,0.18715713,61502.0,61501.0,0.088586]
[1724279989274,0.23579196,61502.0,61501.0,0.088586]
[1724279989964,0.24979196,61502.0,61501.0,0.088586]
[1724279990175,1.06333215,61502.0,61501.0,0.088586]
[1724279990335,0.24979196,61502.0,61501.0,0.088586]
[1724279990516,0.24979196,61502.0,61501.0,0.152786]
[1724279991282,0.19200298,61502.0,61501.0,0.153786]
[1724279992536,0.028,61502.0,61501.0,0.64286666]
[1724279992739,0.028,61502.0,61501.0,0.152786]
[1724279992740,0.19200298,61502.0,61501.0,0.152786]
[1724279993643,0.17800298,61502.0,61501.0,0.152786]
[1724279993843,0.20100298,61502.0,61501.0,0.152786]
[1724279994431,0.21500298,61502.0,61501.0,0.152786]
[1724279996402,0.19200298,61502.0,61501.0,0.152786]
[1724279999203,0.19200298,61502.0,61501.0,0.31766966]
[1724279999204,0.028,61502.0,61501.0,0.31766966]
[1724279999894,0.04499239,61502.0,61501.0,0.31766966]
[1724280000129,0.04499239,61502.0,61501.0,0.96806366]
[1724280001021,0.04499239,61502.0,61501.0,0.97006366]
[1724280001218,0.028,61502.0,61501.0,0.97006366]
[1724280003003,0.028,61502.0,61501.0,0.64286666]
[1724280003393,0.028,61502.0,61501.0,0.96806366]
[1724280003605,0.014,61502.0,61501.0,1.29526066]
[1724280003815,0.49229154,61521.0,61515.0,0.001]
[1724280004023,0.16400298,61520.0,61517.0,0.0616]
[1724280004222,0.16400298,61520.0,61518.0,0.0751]
[1724280004829,0.023,61519.0,61518.0,0.0751]
[1724280005042,0.18700298,61519.0,61518.0,0.0751]
[1724280006781,0.20100298,61519.0,61518.0,0.0751]
[1724280007305,0.21500298,61519.0,61518.0,0.0751]
[1724280010474,0.325119,61516.0,61513.0,0.0754]
[1724280010792,0.07300636,61514.0,61513.0,0.0754]
[1724280010944,0.23700934,61514.0,61513.0,0.0754]
[1724280011148,0.18700298,61514.0,61513.0,0.0754]
[1724280011356,0.23568068,61514.0,61513.0,0.0754]
[1724280012109,0.16400298,61514.0,61513.0,0.1412]
[1724280013085,0.17800298,61514.0,61513.0,0.1412]
[1724280013285,0.19200298,61514.0,61513.0,0.1412]
[1724280014465,0.19200298,61514.0,61513.0,0.0754]
[1724280014466,0.22337283,61514.0,61513.0,0.0754]
[1724280014681,0.24637283,61514.0,61507.0,0.064]
[1724280014898,0.00015415,61511.0,61508.0,0.0813]
[1724280015102,0.32657998,61509.0,61508.0,0.0813]
[1724280015312,0.32657998,61509.0,61501.0,0.009086]
[1724280015313,0.487767,61505.0,61501.0,0.009086]
[1724280015520,0.04868366,61502.0,61501.0,0.009086]
[1724280015726,0.21268793,61502.0,61501.0,0.009086]
[1724280015924,0.26002847,61502.0,61501.0,0.009086]
[1724280016141,0.18700298,61502.0,61501.0,0.009086]
[1724280016776,0.26002847,61502.0,61501.0,0.009086]
[1724280016991,0.20100298,61502.0,61501.0,0.009086]
[1724280017442,0.24968677,61502.0,61501.0,0.009086]
[1724280017615,0.20100298,61502.0,61501.0,0.009086]
[1724280017817,0.21500298,61502.0,61501.0,0.009086]
[1724280018020,0.26368482,61502.0,61501.0,0.009086]
[1724280018224,0.21500298,61502.0,61501.0,0.009086]
[1724280018585,0.4859627,61502.0,61501.0,0.009086]
[1724280018816,0.34771035,61502.0,61501.0,0.009086]
[1724280019016,0.26368529,61502.0,61501.0,0.009086]
[1724280019474,0.21500298,61502.0,61501.0,0.009086]
[1724280019790,0.21500298,61502.0,61501.0,0.087586]
[1724280020068,0.23199537,61502.0,61501.0,0.087586]
[1724280021322,0.34205715,61502.0,61501.0,0.087586]
[1724280021434,0.30517501,61502.0,61501.0,0.009086]
[1724280021641,0.46777101,61502.0,61501.0,0.009086]
[1724280021901,0.71993752,61502.0,61501.0,0.009086]
[1724280022103,0.39459137,61502.0,61501.0,0.009086]
[1724280022516,0.23214952,61502.0,61501.0,0.009086]
[1724280024275,0.7149952,61502.0,61501.0,0.009086]
[1724280024487,0.8775912,61502.0,61501.0,0.009086]
[1724280026224,0.71993752,61502.0,61501.0,0.009086]
[1724280026411,0.39474552,61502.0,61501.0,0.009086]
[1724280026601,0.71993752,61502.0,61501.0,0.009086]
[1724280027310,0.79294318,61502.0,61501.0,0.009086]
[1724280028794,0.7929376,61502.0,61501.0,0.009086]
[1724280030723,0.4677456,61502.0,61501.0,0.009086]
[1724280032052,0.7929376,61502.0,61501.0,0.009086]
[1724280032253,0.30499545,61502.0,61501.0,0.149086]
[1724280032514,0.20899537,61502.0,61501.0,0.149086]
[1724280033826,0.23199537,61502.0,61501.0,0.149086]
[1724280035451,0.04499239,61502.0,61501.0,0.80176566]
[1724280035688,0.04499239,61502.0,61501.0,0.96436366]
[1724280035898,0.04499239,61502.0,61501.0,1.28956066]
[1724280036857,0.03099239,61502.0,61501.0,1.28956066]
[1724280037055,0.03799239,61502.0,61501.0,0.96436366]
[1724280037257,0.02399239,61502.0,61501.0,0.63916666]
[1724280037662,0.03699239,61502.0,61501.0,0.63916666]
[1724280037890,0.02999239,61502.0,61501.0,0.63916666]
[1724280038084,0.01699239,61502.0,61501.0,0.63916666]
[1724280038462,0.01999239,61502.0,61501.0,0.63916666]
[1724280038861,0.01699239,61502.0,61501.0,0.64116666]
[1724280039061,0.02399239,61502.0,61501.0,0.96636366]
[1724280039261,0.02599239,61502.0,61501.0,0.96636366]
[1724280040015,0.02360104,61502.0,61501.0,0.96636366]
[1724280040398,0.01960104,61502.0,61501.0,0.96636366]
[1724280040759,0.02260104,61502.0,61501.0,0.96636366]
[1724280041181,0.01960104,61502.0,61501.0,0.96636366]
[1724280042410,0.02160104,61502.0,61501.0,0.96636366]
[1724280043461,0.02160104,61502.0,61501.0,0.64116666]
[1724280044082,0.02160104,61502.0,61501.0,0.96636366]
[1724280046965,0.02160104,61502.0,61501.0,1.29156066]
[1724280047388,0.02160104,61502.0,61501.0,0.96636366]
[1724280048910,0.02160104,61502.0,61501.0,0.9659206]
[1724280049502,0.02160104,61502.0,61501.0,1.2911176]
[1724280049635,0.005,61502.0,61501.0,1.71846111]
[1724280049839,0.005,61502.0,61501.0,1.88246409]
[1724280050040,0.005,61502.0,61501.0,2.20766109]
[1724280050265,0.005,61502.0,61501.0,2.16531758]
[1724280050989,0.005,61502.0,61501.0,2.16331758]
[1724280052799,0.005,61502.0,61501.0,1.3911176]
[1724280056258,0.005,61502.0,61501.0,1.0659206]
[1724280056961,0.005,61502.0,61501.0,0.31208679]
[1724280057335,0.005,61502.0,61501.0,0.24764094]
[1724280057534,0.16900298,61502.0,61501.0,0.08404294]
[1724280057734,0.16900298,61502.0,61501.0,0.00864294]
[1724280058546,0.16900298,61502.0,61501.0,0.00964294]
[1724280058741,0.16700298,61502.0,61501.0,0.00964294]
[1724280058950,0.17600298,61502.0,61501.0,0.00864294]
[1724280059341,0.16700298,61502.0,61501.0,0.00864294]
[1724280059572,0.17300298,61502.0,61501.0,0.00964294]
[1724280059960,0.18200298,61502.0,61501.0,0.00964294]
[1724280060158,0.18200298,61502.0,61501.0,0.00864294]
[1724280060365,0.17300298,61502.0,61501.0,0.00864294]
[1724280060622,0.17300298,61502.0,61501.0,0.00964294]
[1724280060823,0.18200298,61502.0,61501.0,0.01164294]
[1724280061160,0.18200298,61502.0,61501.0,0.6390236]
[1724280061161,0.018,61502.0,61501.0,0.6390236]
[1724280061361,0.018,61502.0,61501.0,1.2894176]
[1724280063097,0.018,61502.0,61501.0,0.63773794]
[1724280063299,0.018,61502.0,61501.0,0.6390236]
[1724280063974,0.018826,61502.0,61501.0,0.6390236]
[1724280064324,0.018826,61502.0,61501.0,0.9642206]
[1724280066602,0.18282898,61502.0,61501.0,0.08644294]
[1724280066981,0.18282898,61502.0,61501.0,0.24904094]
[1724280067181,0.18282898,61502.0,61501.0,0.08644294]
[1724280067887,0.18282898,61502.0,61501.0,0.00864294]
[1724280070516,0.18282898,61502.0,61501.0,0.09064294]
[1724280071223,0.18282898,61502.0,61501.0,0.2545266]
[1724280071224,0.018826,61502.0,61501.0,0.2545266]
[1724280071427,0.018826,61502.0,61501.0,0.5797236]
[1724280071888,0.018826,61502.0,61501.0,0.9049206]
[1724280072264,0.018826,61502.0,61501.0,0.90348079]
[1724280072469,0.018826,61502.0,61501.0,0.9049206]
[1724280072988,0.018826,61502.0,61501.0,0.5797236]
[1724280074380,0.018826,61502.0,61501.0,0.5817236]
[1724280075989,0.018826,61502.0,61501.0,0.9069206]
[1724280076840,0.18282898,61502.0,61501.0,0.09064294]
[1724280077011,0.18282898,61502.0,61501.0,0.08964294]
[1724280077236,0.18282898,61502.0,61501.0,0.00864294]
[1724280078588,0.21816515,61502.0,61501.0,0.00864294]
[1724280078739,0.18282898,61502.0,61501.0,0.00864294]
[1724280079078,0.20582898,61502.0,61501.0,0.00864294]
[1724280079551,0.19682898,61502.0,61501.0,0.00864294]
[1724280079962,0.2365352,61502.0,61501.0,0.00864294]
[1724280080533,0.18782898,61502.0,61501.0,0.00864294]
[1724280081188,0.20182898,61502.0,61501.0,0.00864294]
[1724280081390,0.19282898,61502.0,61501.0,0.00864294]
[1724280081845,0.16482898,61502.0,61501.0,0.00864294]
[1724280082043,0.17882898,61502.0,61501.0,0.00864294]
[1724280082264,0.19282898,61502.0,61501.0,0.00864294]
[1724280082482,0.17882898,61502.0,61501.0,0.00864294]
[1724280082944,0.19282898,61502.0,61501.0,0.00864294]
[1724280090610,0.25234041,61502.0,61501.0,0.00864294]
[1724280090816,0.30103007,61502.0,61501.0,0.00864294]
[1724280091279,0.25234041,61502.0,61501.0,0.00864294]
[1724280091497,0.22434041,61502.0,61501.0,0.00864294]
[1724280091617,0.23834041,61502.0,61501.0,0.00864294]
[1724280091844,0.21598313,61502.0,61501.0,0.00864294]
[1724280092054,0.23666739,61502.0,61501.0,0.00864294]
[1724280092290,0.25066739,61502.0,61501.0,0.00864294]
[1724280092492,0.26466264,61502.0,61501.0,0.00864294]
[1724280092698,0.25066264,61502.0,61501.0,0.00864294]